{"text_format":"3","workbook":"xlsx","n_sheets":1,"sheets":["Eredménykimutatás"],"not_rendered":{"defined_names":2},"read":"whole","date_system":"1900"}

{"sheet":"Eredménykimutatás","index":0,"n_rows":60,"n_cols":10,"rows_kept":60,"merged":[[9,1,9,9],[16,1,16,9],[24,1,24,9],[38,1,38,9],[43,1,43,9],[56,1,56,9]]}
[null,"Nyereség és veszteség Kimutatás"]
[]
[{"$nulls":3},"ELŐZŐ IDŐSZAK ","KÖLTSÉGVETÉS ","AKTUÁLIS IDŐSZAK ",null,"AKTUÁLIS IDŐSZAK AZ ÉRTÉKESÍTÉS %-ÁBAN ","%-OS VÁLTOZÁS AZ ELŐZŐ IDŐSZAKHOZ KÉPEST ","%-OS ELTÉRÉS A KÖLTSÉGVETÉSTŐL "]
[null,"Értékesítési bevétel"]
[null,"1. termék/szolgáltatás",null,40,50,45,null,{"$f":"IFERROR(ÉrtékesítésiBevétel[[#This Row],[Aktuális időszak]]/SUBTOTAL(109,ÉrtékesítésiBevétel[Aktuális időszak]),0)","v":{"v":1,"d":"100.0%"}},{"$f":"IFERROR(ÉrtékesítésiBevétel[[#This Row],[Aktuális időszak]]/ÉrtékesítésiBevétel[[#This Row],[Előző időszak]]-1,0)","v":{"v":0.125,"d":"12.5%"}},{"$f":"IFERROR(ÉrtékesítésiBevétel[[#This Row],[Aktuális időszak]]/ÉrtékesítésiBevétel[[#This Row],[Költségvetés]]-1,0)","v":{"v":-0.09999999999999998,"d":"-10.0%"}}]
[null,"2. termék/szolgáltatás",{"$nulls":5},{"$f":"IFERROR(ÉrtékesítésiBevétel[[#This Row],[Aktuális időszak]]/SUBTOTAL(109,ÉrtékesítésiBevétel[Aktuális időszak]),0)","v":0},{"$f":"IFERROR(ÉrtékesítésiBevétel[[#This Row],[Aktuális időszak]]/ÉrtékesítésiBevétel[[#This Row],[Előző időszak]]-1,0)","v":0},{"$f":"IFERROR(ÉrtékesítésiBevétel[[#This Row],[Aktuális időszak]]/ÉrtékesítésiBevétel[[#This Row],[Költségvetés]]-1,0)","v":0}]
[null,"3. termék/szolgáltatás",{"$nulls":5},{"$f":"IFERROR(ÉrtékesítésiBevétel[[#This Row],[Aktuális időszak]]/SUBTOTAL(109,ÉrtékesítésiBevétel[Aktuális időszak]),0)","v":0},{"$f":"IFERROR(ÉrtékesítésiBevétel[[#This Row],[Aktuális időszak]]/ÉrtékesítésiBevétel[[#This Row],[Előző időszak]]-1,0)","v":0},{"$f":"IFERROR(ÉrtékesítésiBevétel[[#This Row],[Aktuális időszak]]/ÉrtékesítésiBevétel[[#This Row],[Költségvetés]]-1,0)","v":0}]
[null,"4. termék/szolgáltatás",{"$nulls":5},{"$f":"IFERROR(ÉrtékesítésiBevétel[[#This Row],[Aktuális időszak]]/SUBTOTAL(109,ÉrtékesítésiBevétel[Aktuális időszak]),0)","v":0},{"$f":"IFERROR(ÉrtékesítésiBevétel[[#This Row],[Aktuális időszak]]/ÉrtékesítésiBevétel[[#This Row],[Előző időszak]]-1,0)","v":0},{"$f":"IFERROR(ÉrtékesítésiBevétel[[#This Row],[Aktuális időszak]]/ÉrtékesítésiBevétel[[#This Row],[Költségvetés]]-1,0)","v":0}]
[null,"Összeg",null,{"$f":"SUBTOTAL(109,ÉrtékesítésiBevétel[Előző időszak])","v":40},{"$f":"SUBTOTAL(109,ÉrtékesítésiBevétel[Költségvetés])","v":50},{"$f":"SUBTOTAL(109,ÉrtékesítésiBevétel[Aktuális időszak])","v":45},null,{"$f":"IFERROR(ÉrtékesítésiBevétel[[#Totals],[Aktuális időszak]]/ÉrtékesítésiBevétel[[#Totals],[Aktuális időszak]],0)","v":{"v":1,"d":"100.0%"}},{"$f":"IFERROR(ÉrtékesítésiBevétel[[#Totals],[Aktuális időszak]]/ÉrtékesítésiBevétel[[#Totals],[Előző időszak]]-1,0)","v":{"v":0.125,"d":"12.5%"}},{"$f":"IFERROR(ÉrtékesítésiBevétel[[#Totals],[Aktuális időszak]]/ÉrtékesítésiBevétel[[#Totals],[Költségvetés]]-1,0)","v":{"v":-0.09999999999999998,"d":"-10.0%"}}]
[]
[null,"Értékesítés önköltsége"]
[null,"1. termék/szolgáltatás",null,null,2,3,null,{"$f":"IFERROR(ForgalmiKöltség[[#This Row],[Aktuális időszak]]/SUBTOTAL(109,ÉrtékesítésiBevétel[Aktuális időszak]),0)","v":{"v":0.06666666666666667,"d":"6.7%"}},{"$f":"IFERROR(ForgalmiKöltség[[#This Row],[Aktuális időszak]]/ForgalmiKöltség[[#This Row],[Előző időszak]]-1,0)","v":0},{"$f":"IFERROR(ForgalmiKöltség[[#This Row],[Aktuális időszak]]/ForgalmiKöltség[[#This Row],[Költségvetés]]-1,0)","v":{"v":0.5,"d":"50.0%"}}]
[null,"2. termék/szolgáltatás",null,null,5,3,null,{"$f":"IFERROR(ForgalmiKöltség[[#This Row],[Aktuális időszak]]/SUBTOTAL(109,ÉrtékesítésiBevétel[Aktuális időszak]),0)","v":{"v":0.06666666666666667,"d":"6.7%"}},{"$f":"IFERROR(ForgalmiKöltség[[#This Row],[Aktuális időszak]]/ForgalmiKöltség[[#This Row],[Előző időszak]]-1,0)","v":0},{"$f":"IFERROR(ForgalmiKöltség[[#This Row],[Aktuális időszak]]/ForgalmiKöltség[[#This Row],[Költségvetés]]-1,0)","v":{"v":-0.4,"d":"-40.0%"}}]
[null,"3. termék/szolgáltatás",{"$nulls":3},1,null,{"$f":"IFERROR(ForgalmiKöltség[[#This Row],[Aktuális időszak]]/SUBTOTAL(109,ÉrtékesítésiBevétel[Aktuális időszak]),0)","v":{"v":0.022222222222222223,"d":"2.2%"}},{"$f":"IFERROR(ForgalmiKöltség[[#This Row],[Aktuális időszak]]/ForgalmiKöltség[[#This Row],[Előző időszak]]-1,0)","v":0},{"$f":"IFERROR(ForgalmiKöltség[[#This Row],[Aktuális időszak]]/ForgalmiKöltség[[#This Row],[Költségvetés]]-1,0)","v":0}]
[null,"4. termék/szolgáltatás",{"$nulls":5},{"$f":"IFERROR(ForgalmiKöltség[[#This Row],[Aktuális időszak]]/SUBTOTAL(109,ÉrtékesítésiBevétel[Aktuális időszak]),0)","v":0},{"$f":"IFERROR(ForgalmiKöltség[[#This Row],[Aktuális időszak]]/ForgalmiKöltség[[#This Row],[Előző időszak]]-1,0)","v":0},{"$f":"IFERROR(ForgalmiKöltség[[#This Row],[Aktuális időszak]]/ForgalmiKöltség[[#This Row],[Költségvetés]]-1,0)","v":0}]
[null,"Összeg",null,{"$f":"SUBTOTAL(109,ForgalmiKöltség[Előző időszak])","v":0},{"$f":"SUBTOTAL(109,ForgalmiKöltség[Költségvetés])","v":7},{"$f":"SUBTOTAL(109,ForgalmiKöltség[Aktuális időszak])","v":7},null,{"$f":"IFERROR(ForgalmiKöltség[[#Totals],[Aktuális időszak]]/SUBTOTAL(109,ÉrtékesítésiBevétel[Aktuális időszak]),0)","v":{"v":0.15555555555555556,"d":"15.6%"}},{"$f":"IFERROR(ForgalmiKöltség[[#Totals],[Aktuális időszak]]/ForgalmiKöltség[[#Totals],[Előző időszak]]-1,0)","v":0},{"$f":"IFERROR(ForgalmiKöltség[[#Totals],[Aktuális időszak]]/ForgalmiKöltség[[#Totals],[Költségvetés]]-1,0)","v":0}]
[]
[null,"Bruttó eredmény",null,{"$f":"SUM(ÉrtékesítésiBevétel[Előző időszak])-SUM(ForgalmiKöltség[Előző időszak])","v":40},{"$f":"SUM(ÉrtékesítésiBevétel[Költségvetés])-SUM(ForgalmiKöltség[Költségvetés])","v":43},{"$f":"SUM(ÉrtékesítésiBevétel[Aktuális időszak])-SUM(ForgalmiKöltség[Aktuális időszak])","v":38},null,{"$f":"IFERROR(F18/SUBTOTAL(109,ÉrtékesítésiBevétel[Aktuális időszak]),0)","v":{"v":0.8444444444444444,"d":"84.4%"}},{"$f":"IFERROR(F18/D18-1,0)","v":{"v":-0.050000000000000044,"d":"-5.0%"}},{"$f":"IFERROR(F18/E18-1,0)","v":{"v":-0.11627906976744184,"d":"-11.6%"}}]
[]
[null,"Működési költség: Értékesítés és marketing"]
[null,"Hirdetés",null,null,22,19,null,{"$f":"IFERROR(ÉrtékesítésÉsMarketing[[#This Row],[Aktuális időszak]]/SUBTOTAL(109,ÉrtékesítésiBevétel[Aktuális időszak]),0)","v":{"v":0.4222222222222222,"d":"42.2%"}},{"$f":"IFERROR(ÉrtékesítésÉsMarketing[[#This Row],[Aktuális időszak]]/ÉrtékesítésÉsMarketing[[#This Row],[Előző időszak]]-1,0)","v":0},{"$f":"IFERROR(ÉrtékesítésÉsMarketing[[#This Row],[Aktuális időszak]]/ÉrtékesítésÉsMarketing[[#This Row],[Költségvetés]]-1,0)","v":{"v":-0.13636363636363635,"d":"-13.6%"}}]
[null,"Direktmarketing",{"$nulls":5},{"$f":"IFERROR(ÉrtékesítésÉsMarketing[[#This Row],[Aktuális időszak]]/SUBTOTAL(109,ÉrtékesítésiBevétel[Aktuális időszak]),0)","v":0},{"$f":"IFERROR(ÉrtékesítésÉsMarketing[[#This Row],[Aktuális időszak]]/ÉrtékesítésÉsMarketing[[#This Row],[Előző időszak]]-1,0)","v":0},{"$f":"IFERROR(ÉrtékesítésÉsMarketing[[#This Row],[Aktuális időszak]]/ÉrtékesítésÉsMarketing[[#This Row],[Költségvetés]]-1,0)","v":0}]
[null,"Egyéb kiadások (adja meg)",{"$nulls":5},{"$f":"IFERROR(ÉrtékesítésÉsMarketing[[#This Row],[Aktuális időszak]]/SUBTOTAL(109,ÉrtékesítésiBevétel[Aktuális időszak]),0)","v":0},{"$f":"IFERROR(ÉrtékesítésÉsMarketing[[#This Row],[Aktuális időszak]]/ÉrtékesítésÉsMarketing[[#This Row],[Előző időszak]]-1,0)","v":0},{"$f":"IFERROR(ÉrtékesítésÉsMarketing[[#This Row],[Aktuális időszak]]/ÉrtékesítésÉsMarketing[[#This Row],[Költségvetés]]-1,0)","v":0}]
[null,"Összeg",null,{"$f":"SUBTOTAL(109,ÉrtékesítésÉsMarketing[Előző időszak])","v":0},{"$f":"SUBTOTAL(109,ÉrtékesítésÉsMarketing[Költségvetés])","v":22},{"$f":"SUBTOTAL(109,ÉrtékesítésÉsMarketing[Aktuális időszak])","v":19},null,{"$f":"IFERROR(ÉrtékesítésÉsMarketing[[#Totals],[Aktuális időszak]]/SUBTOTAL(109,ÉrtékesítésiBevétel[Aktuális időszak]),0)","v":{"v":0.4222222222222222,"d":"42.2%"}},{"$f":"IFERROR(ÉrtékesítésÉsMarketing[[#Totals],[Aktuális időszak]]/ÉrtékesítésÉsMarketing[[#Totals],[Előző időszak]]-1,0)","v":0},{"$f":"IFERROR(ÉrtékesítésÉsMarketing[[#Totals],[Aktuális időszak]]/ÉrtékesítésÉsMarketing[[#Totals],[Költségvetés]]-1,0)","v":{"v":-0.13636363636363635,"d":"-13.6%"}}]
[]
[null,"Működési költség: Általános és adminisztrációs"]
[null,"Munkabérek",null,null,56,51,null,{"$f":"IFERROR(ÁltalánosÉsAdminisztratív[[#This Row],[Aktuális időszak]]/SUBTOTAL(109,ÉrtékesítésiBevétel[Aktuális időszak]),0)","v":{"v":1.1333333333333333,"d":"113.3%"}},{"$f":"IFERROR(ÁltalánosÉsAdminisztratív[[#This Row],[Aktuális időszak]]/ÁltalánosÉsAdminisztratív[[#This Row],[Előző időszak]]-1,0)","v":0},{"$f":"IFERROR(ÁltalánosÉsAdminisztratív[[#This Row],[Aktuális időszak]]/ÁltalánosÉsAdminisztratív[[#This Row],[Költségvetés]]-1,0)","v":{"v":-0.0892857142857143,"d":"-8.9%"}}]
[null,"Külső szolgáltatások",{"$nulls":5},{"$f":"IFERROR(ÁltalánosÉsAdminisztratív[[#This Row],[Aktuális időszak]]/SUBTOTAL(109,ÉrtékesítésiBevétel[Aktuális időszak]),0)","v":0},{"$f":"IFERROR(ÁltalánosÉsAdminisztratív[[#This Row],[Aktuális időszak]]/ÁltalánosÉsAdminisztratív[[#This Row],[Előző időszak]]-1,0)","v":0},{"$f":"IFERROR(ÁltalánosÉsAdminisztratív[[#This Row],[Aktuális időszak]]/ÁltalánosÉsAdminisztratív[[#This Row],[Költségvetés]]-1,0)","v":0}]
[null,"Kellékek",{"$nulls":5},{"$f":"IFERROR(ÁltalánosÉsAdminisztratív[[#This Row],[Aktuális időszak]]/SUBTOTAL(109,ÉrtékesítésiBevétel[Aktuális időszak]),0)","v":0},{"$f":"IFERROR(ÁltalánosÉsAdminisztratív[[#This Row],[Aktuális időszak]]/ÁltalánosÉsAdminisztratív[[#This Row],[Előző időszak]]-1,0)","v":0},{"$f":"IFERROR(ÁltalánosÉsAdminisztratív[[#This Row],[Aktuális időszak]]/ÁltalánosÉsAdminisztratív[[#This Row],[Költségvetés]]-1,0)","v":0}]
[null,"Étkezés és reprezentáció",{"$nulls":5},{"$f":"IFERROR(ÁltalánosÉsAdminisztratív[[#This Row],[Aktuális időszak]]/SUBTOTAL(109,ÉrtékesítésiBevétel[Aktuális időszak]),0)","v":0},{"$f":"IFERROR(ÁltalánosÉsAdminisztratív[[#This Row],[Aktuális időszak]]/ÁltalánosÉsAdminisztratív[[#This Row],[Előző időszak]]-1,0)","v":0},{"$f":"IFERROR(ÁltalánosÉsAdminisztratív[[#This Row],[Aktuális időszak]]/ÁltalánosÉsAdminisztratív[[#This Row],[Költségvetés]]-1,0)","v":0}]
[null,"Bérleti díj",{"$nulls":5},{"$f":"IFERROR(ÁltalánosÉsAdminisztratív[[#This Row],[Aktuális időszak]]/SUBTOTAL(109,ÉrtékesítésiBevétel[Aktuális időszak]),0)","v":0},{"$f":"IFERROR(ÁltalánosÉsAdminisztratív[[#This Row],[Aktuális időszak]]/ÁltalánosÉsAdminisztratív[[#This Row],[Előző időszak]]-1,0)","v":0},{"$f":"IFERROR(ÁltalánosÉsAdminisztratív[[#This Row],[Aktuális időszak]]/ÁltalánosÉsAdminisztratív[[#This Row],[Költségvetés]]-1,0)","v":0}]
[null,"Telefon",{"$nulls":5},{"$f":"IFERROR(ÁltalánosÉsAdminisztratív[[#This Row],[Aktuális időszak]]/SUBTOTAL(109,ÉrtékesítésiBevétel[Aktuális időszak]),0)","v":0},{"$f":"IFERROR(ÁltalánosÉsAdminisztratív[[#This Row],[Aktuális időszak]]/ÁltalánosÉsAdminisztratív[[#This Row],[Előző időszak]]-1,0)","v":0},{"$f":"IFERROR(ÁltalánosÉsAdminisztratív[[#This Row],[Aktuális időszak]]/ÁltalánosÉsAdminisztratív[[#This Row],[Költségvetés]]-1,0)","v":0}]
[null,"Közüzemi díjak",{"$nulls":5},{"$f":"IFERROR(ÁltalánosÉsAdminisztratív[[#This Row],[Aktuális időszak]]/SUBTOTAL(109,ÉrtékesítésiBevétel[Aktuális időszak]),0)","v":0},{"$f":"IFERROR(ÁltalánosÉsAdminisztratív[[#This Row],[Aktuális időszak]]/ÁltalánosÉsAdminisztratív[[#This Row],[Előző időszak]]-1,0)","v":0},{"$f":"IFERROR(ÁltalánosÉsAdminisztratív[[#This Row],[Aktuális időszak]]/ÁltalánosÉsAdminisztratív[[#This Row],[Költségvetés]]-1,0)","v":0}]
[null,"Értékcsökkenés",{"$nulls":5},{"$f":"IFERROR(ÁltalánosÉsAdminisztratív[[#This Row],[Aktuális időszak]]/SUBTOTAL(109,ÉrtékesítésiBevétel[Aktuális időszak]),0)","v":0},{"$f":"IFERROR(ÁltalánosÉsAdminisztratív[[#This Row],[Aktuális időszak]]/ÁltalánosÉsAdminisztratív[[#This Row],[Előző időszak]]-1,0)","v":0},{"$f":"IFERROR(ÁltalánosÉsAdminisztratív[[#This Row],[Aktuális időszak]]/ÁltalánosÉsAdminisztratív[[#This Row],[Költségvetés]]-1,0)","v":0}]
[null,"Biztosítás",{"$nulls":5},{"$f":"IFERROR(ÁltalánosÉsAdminisztratív[[#This Row],[Aktuális időszak]]/SUBTOTAL(109,ÉrtékesítésiBevétel[Aktuális időszak]),0)","v":0},{"$f":"IFERROR(ÁltalánosÉsAdminisztratív[[#This Row],[Aktuális időszak]]/ÁltalánosÉsAdminisztratív[[#This Row],[Előző időszak]]-1,0)","v":0},{"$f":"IFERROR(ÁltalánosÉsAdminisztratív[[#This Row],[Aktuális időszak]]/ÁltalánosÉsAdminisztratív[[#This Row],[Költségvetés]]-1,0)","v":0}]
[null,"Javítás és karbantartás",{"$nulls":5},{"$f":"IFERROR(ÁltalánosÉsAdminisztratív[[#This Row],[Aktuális időszak]]/SUBTOTAL(109,ÉrtékesítésiBevétel[Aktuális időszak]),0)","v":0},{"$f":"IFERROR(ÁltalánosÉsAdminisztratív[[#This Row],[Aktuális időszak]]/ÁltalánosÉsAdminisztratív[[#This Row],[Előző időszak]]-1,0)","v":0},{"$f":"IFERROR(ÁltalánosÉsAdminisztratív[[#This Row],[Aktuális időszak]]/ÁltalánosÉsAdminisztratív[[#This Row],[Költségvetés]]-1,0)","v":0}]
[null,"Egyéb kiadások (adja meg)",{"$nulls":5},{"$f":"IFERROR(ÁltalánosÉsAdminisztratív[[#This Row],[Aktuális időszak]]/SUBTOTAL(109,ÉrtékesítésiBevétel[Aktuális időszak]),0)","v":0},{"$f":"IFERROR(ÁltalánosÉsAdminisztratív[[#This Row],[Aktuális időszak]]/ÁltalánosÉsAdminisztratív[[#This Row],[Előző időszak]]-1,0)","v":0},{"$f":"IFERROR(ÁltalánosÉsAdminisztratív[[#This Row],[Aktuális időszak]]/ÁltalánosÉsAdminisztratív[[#This Row],[Költségvetés]]-1,0)","v":0}]
[null,"Összeg",null,{"$f":"SUBTOTAL(109,ÁltalánosÉsAdminisztratív[Előző időszak])","v":0},{"$f":"SUBTOTAL(109,ÁltalánosÉsAdminisztratív[Költségvetés])","v":56},{"$f":"SUBTOTAL(109,ÁltalánosÉsAdminisztratív[Aktuális időszak])","v":51},null,{"$f":"IFERROR(ÁltalánosÉsAdminisztratív[[#Totals],[Aktuális időszak]]/SUBTOTAL(109,ÉrtékesítésiBevétel[Aktuális időszak]),0)","v":{"v":1.1333333333333333,"d":"113.3%"}},{"$f":"IFERROR(ÁltalánosÉsAdminisztratív[[#Totals],[Aktuális időszak]]/ÁltalánosÉsAdminisztratív[[#Totals],[Előző időszak]]-1,0)","v":0},{"$f":"IFERROR(ÁltalánosÉsAdminisztratív[[#Totals],[Aktuális időszak]]/ÁltalánosÉsAdminisztratív[[#Totals],[Költségvetés]]-1,0)","v":{"v":-0.0892857142857143,"d":"-8.9%"}}]
[]
[null,"Működési költség: Egyéb"]
[null,"1. egyéb működési költség",null,null,10,null,null,{"$f":"IFERROR(EgyébMűködésiKöltségKategória[[#This Row],[Aktuális időszak]]/SUBTOTAL(109,ÉrtékesítésiBevétel[Aktuális időszak]),0)","v":0},{"$f":"IFERROR(EgyébMűködésiKöltségKategória[[#This Row],[Aktuális időszak]]/EgyébMűködésiKöltségKategória[[#This Row],[Előző időszak]]-1,0)","v":0},{"$f":"IFERROR(EgyébMűködésiKöltségKategória[[#This Row],[Aktuális időszak]]/EgyébMűködésiKöltségKategória[[#This Row],[Költségvetés]]-1,0)","v":{"v":-1,"d":"-100.0%"}}]
[null,"2. egyéb működési költség",{"$nulls":5},{"$f":"IFERROR(EgyébMűködésiKöltségKategória[[#This Row],[Aktuális időszak]]/SUBTOTAL(109,ÉrtékesítésiBevétel[Aktuális időszak]),0)","v":0},{"$f":"IFERROR(EgyébMűködésiKöltségKategória[[#This Row],[Aktuális időszak]]/EgyébMűködésiKöltségKategória[[#This Row],[Előző időszak]]-1,0)","v":0},{"$f":"IFERROR(EgyébMűködésiKöltségKategória[[#This Row],[Aktuális időszak]]/EgyébMűködésiKöltségKategória[[#This Row],[Költségvetés]]-1,0)","v":0}]
[null,"Összeg",null,{"$f":"SUBTOTAL(109,EgyébMűködésiKöltségKategória[Előző időszak])","v":0},{"$f":"SUBTOTAL(109,EgyébMűködésiKöltségKategória[Költségvetés])","v":10},{"$f":"SUBTOTAL(109,EgyébMűködésiKöltségKategória[Aktuális időszak])","v":0},null,{"$f":"IFERROR(EgyébMűködésiKöltségKategória[[#Totals],[Aktuális időszak]]/SUBTOTAL(109,ÉrtékesítésiBevétel[Aktuális időszak]),0)","v":0},{"$f":"IFERROR(EgyébMűködésiKöltségKategória[[#Totals],[Aktuális időszak]]/EgyébMűködésiKöltségKategória[[#Totals],[Előző időszak]]-1,0)","v":0},{"$f":"IFERROR(EgyébMűködésiKöltségKategória[[#Totals],[Aktuális időszak]]/EgyébMűködésiKöltségKategória[[#Totals],[Költségvetés]]-1,0)","v":{"v":-1,"d":"-100.0%"}}]
[]
[null,"Összes működési költség",null,{"$f":"SUM(ÉrtékesítésÉsMarketing[Előző időszak],ÁltalánosÉsAdminisztratív[Előző időszak],EgyébMűködésiKöltségKategória[Előző időszak])","v":0},{"$f":"SUM(ÉrtékesítésÉsMarketing[Költségvetés],ÁltalánosÉsAdminisztratív[Költségvetés],EgyébMűködésiKöltségKategória[Költségvetés])","v":88},{"$f":"SUM(ÉrtékesítésÉsMarketing[Aktuális időszak],ÁltalánosÉsAdminisztratív[Aktuális időszak],EgyébMűködésiKöltségKategória[Aktuális időszak])","v":70},null,{"$f":"IFERROR(F45/SUBTOTAL(109,ÉrtékesítésiBevétel[Aktuális időszak]),0)","v":{"v":1.5555555555555556,"d":"155.6%"}},{"$f":"IFERROR(F45/D45-1,0)","v":0},{"$f":"IFERROR(F45/E45-1,0)","v":{"v":-0.20454545454545459,"d":"-20.5%"}}]
[]
[null,"Működésből származó bevétel",null,{"$f":"D18-D45","v":40},{"$f":"E18-E45","v":-45},{"$f":"F18-F45","v":-32},null,{"$f":"IFERROR(F47/SUBTOTAL(109,ÉrtékesítésiBevétel[Aktuális időszak]),0)","v":{"v":-0.7111111111111111,"d":"-71.1%"}},{"$f":"IFERROR(IF(D47=F47,0,IF(F47>D47,ABS((F47/D47)-1),IF(AND(F47<D47,D47<0),-((F47/D47)-1),(F47/D47)-1))),0)","v":{"v":-1.8,"d":"-180.0%"}},{"$f":"IFERROR(IF(E47=F47,0,IF(F47>E47,ABS((F47/E47)-1),IF(AND(F47<E47,E47<0),-((F47/E47)-1),(F47/E47)-1))),0)","v":{"v":0.28888888888888886,"d":"28.9%"}}]
[]
[null,"Egyéb bevétel",{"$nulls":5},{"$f":"IFERROR(F49/SUBTOTAL(109,ÉrtékesítésiBevétel[Aktuális időszak]),0)","v":0},{"$f":"IFERROR(F49/D49-1,0)","v":0},{"$f":"IFERROR(F49/E49-1,0)","v":0}]
[]
[null,"Adók"]
[null,"Bevételt terhelő adók",null,null,32,30,null,{"$f":"IFERROR(Adók[[#This Row],[Aktuális időszak]]/SUBTOTAL(109,ÉrtékesítésiBevétel[Aktuális időszak]),0)","v":{"v":0.6666666666666666,"d":"66.7%"}},{"$f":"IFERROR(Adók[[#This Row],[Aktuális időszak]]/Adók[[#This Row],[Előző időszak]]-1,0)","v":0},{"$f":"IFERROR(Adók[[#This Row],[Aktuális időszak]]/Adók[[#This Row],[Költségvetés]]-1,0)","v":{"v":-0.0625,"d":"-6.3%"}}]
[null,"Bérekkel kapcsolatos adók",{"$nulls":5},{"$f":"IFERROR(Adók[[#This Row],[Aktuális időszak]]/SUBTOTAL(109,ÉrtékesítésiBevétel[Aktuális időszak]),0)","v":0},{"$f":"IFERROR(Adók[[#This Row],[Aktuális időszak]]/Adók[[#This Row],[Előző időszak]]-1,0)","v":0},{"$f":"IFERROR(Adók[[#This Row],[Aktuális időszak]]/Adók[[#This Row],[Költségvetés]]-1,0)","v":0}]
[null,"Ingatlanadók",{"$nulls":5},{"$f":"IFERROR(Adók[[#This Row],[Aktuális időszak]]/SUBTOTAL(109,ÉrtékesítésiBevétel[Aktuális időszak]),0)","v":0},{"$f":"IFERROR(Adók[[#This Row],[Aktuális időszak]]/Adók[[#This Row],[Előző időszak]]-1,0)","v":0},{"$f":"IFERROR(Adók[[#This Row],[Aktuális időszak]]/Adók[[#This Row],[Költségvetés]]-1,0)","v":0}]
[null,"Egyéb adók (adja meg)",{"$nulls":5},{"$f":"IFERROR(Adók[[#This Row],[Aktuális időszak]]/SUBTOTAL(109,ÉrtékesítésiBevétel[Aktuális időszak]),0)","v":0},{"$f":"IFERROR(Adók[[#This Row],[Aktuális időszak]]/Adók[[#This Row],[Előző időszak]]-1,0)","v":0},{"$f":"IFERROR(Adók[[#This Row],[Aktuális időszak]]/Adók[[#This Row],[Költségvetés]]-1,0)","v":0}]
[null,"Összeg",null,{"$f":"SUBTOTAL(109,Adók[Előző időszak])","v":0},{"$f":"SUBTOTAL(109,Adók[Költségvetés])","v":32},{"$f":"SUBTOTAL(109,Adók[Aktuális időszak])","v":30},null,{"$f":"IFERROR(Adók[[#Totals],[Aktuális időszak]]/SUBTOTAL(109,ÉrtékesítésiBevétel[Aktuális időszak]),0)","v":{"v":0.6666666666666666,"d":"66.7%"}},{"$f":"IFERROR(Adók[[#Totals],[Aktuális időszak]]/Adók[[#Totals],[Előző időszak]]-1,0)","v":0},{"$f":"IFERROR(Adók[[#Totals],[Aktuális időszak]]/Adók[[#Totals],[Költségvetés]]-1,0)","v":{"v":-0.0625,"d":"-6.3%"}}]
[]
[null,"Nettó eredmény",null,{"$f":"D47+D49-Adók[[#Totals],[Előző időszak]]","v":40},{"$f":"E47+E49-Adók[[#Totals],[Előző időszak]]","v":-45},{"$f":"F47+F49-Adók[[#Totals],[Előző időszak]]","v":-32},null,{"$f":"IFERROR(F58/SUBTOTAL(109,(ÉrtékesítésiBevétel[Aktuális időszak])),0)","v":{"v":-0.7111111111111111,"d":"-71.1%"}},{"$f":"IFERROR(IF(D58=F58,0,IF(F58>D58,ABS((F58/D58)-1),IF(AND(F58<D58,D58<0),-((F58/D58)-1),(F58/D58)-1))),0)","v":{"v":-1.8,"d":"-180.0%"}},{"$f":"IFERROR(IF(E58=F58,0,IF(F58>E58,ABS((F58/E58)-1),IF(AND(F58<E58,E58<0),-((F58/E58)-1),(F58/E58)-1))),0)","v":{"v":0.28888888888888886,"d":"28.9%"}}]
[null,"Bruttó árrés",null,{"$f":"D18/SUM(ÉrtékesítésiBevétel[Előző időszak])","v":{"v":1,"d":"100.0%"}},{"$f":"E18/SUM(ÉrtékesítésiBevétel[Költségvetés])","v":{"v":0.86,"d":"86.0%"}},{"$f":"F18/SUM(ÉrtékesítésiBevétel[Aktuális időszak])","v":{"v":0.8444444444444444,"d":"84.4%"}}]
[null,"Értékesítés nyeresége",null,{"$f":"D58/SUM(ÉrtékesítésiBevétel[Előző időszak])","v":{"v":1,"d":"100.0%"}},{"$f":"E58/SUM(ÉrtékesítésiBevétel[Költségvetés])","v":{"v":-0.9,"d":"-90.0%"}},{"$f":"F58/SUM(ÉrtékesítésiBevétel[Aktuális időszak])","v":{"v":-0.7111111111111111,"d":"-71.1%"}}]